bitfinex/quotes_ETHUSD_20240618
["timestamp","ask_amount","ask_price","bid_price","bid_amount"]
[1718695370853,2.319,3446.7,3445.6,5.66427648]
[1718695376660,2.319,3446.7,3445.6,3.60027648]
[1718695379872,2.319,3446.7,3445.6,0.69803648]
[1718695380038,2.319,3446.7,3445.2,2.90254]
[1718695380376,2.319,3446.7,3445.4,2.90241]
[1718695380564,2.319,3446.7,3445.5,0.05804005]
[1718695380873,2.319,3446.7,3445.3,2.064]
[1718695381251,2.319,3446.7,3445.2,2.90254]
[1718695381452,2.2924,3446.4,3445.5,0.86]
[1718695381854,2.2924,3446.4,3445.0,3.0]
[1718695382066,2.2924,3446.4,3445.4,0.86]
[1718695383074,2.2924,3446.4,3445.9,0.86]
[1718695383841,2.2924,3446.4,3446.3,0.86]
[1718695384043,2.2539,3447.2,3446.3,0.86]
[1718695384243,2.2539,3447.2,3446.3,1.24199324]
[1718695385690,2.2539,3447.2,3446.3,0.38199324]
[1718695387061,2.2539,3447.2,3446.4,0.05802797]
[1718695387262,2.2539,3447.2,3446.3,0.38199324]
[1718695387263,2.2539,3447.2,3446.3,3.28364324]
[1718695387588,2.4739,3447.9,3446.6,2.064]
[1718695387775,2.4739,3447.9,3446.7,0.56036881]
[1718695387964,2.4739,3447.9,3446.8,0.05801888]
[1718695389200,5.4739,3447.9,3446.8,0.05801888]
[1718695391201,3.0,3447.9,3446.7,0.50234993]
[1718695391400,2.3238,3447.8,3446.3,5.34764324]
[1718695391795,2.3238,3447.8,3446.4,2.90157]
[1718695393406,2.3238,3447.8,3446.5,0.05801898]
[1718695395195,2.3238,3447.8,3446.6,2.90137]
[1718695395894,2.3238,3447.8,3446.7,2.3856]
[1718695396094,2.73462032,3448.3,3446.7,2.3856]
[1718695396095,2.4722,3448.5,3447.1,2.064]
[1718695396398,2.4722,3448.5,3447.2,2.44361072]
[1718695396576,2.4722,3448.5,3447.3,0.05801081]
[1718695398304,2.34456215,3448.7,3447.4,2.3856]
[1718695398621,3.0,3449.1,3447.8,2.3856]
[1718695398798,2.4722,3449.2,3447.8,2.3856]
[1718695399402,2.4722,3449.2,3447.9,0.05799735]
[1718695401943,2.4722,3449.2,3448.0,0.05799687]
[1718695402907,2.4722,3449.2,3448.0,0.59239556]
[1718695403114,0.24722,3449.2,3448.1,0.05799688]
[1718695403326,6.0,3449.8,3447.9,0.0579965]
[1718695404038,2.4941,3449.7,3447.9,0.0579965]
[1718695405106,2.4941,3449.7,3447.9,2.9582965]
[1718695405304,2.4941,3449.7,3448.1,2.2573]
[1718695405527,3.07293226,3449.7,3448.2,0.49592166]
[1718695405838,3.07293226,3449.7,3448.3,0.05799198]
[1718695406025,2.4941,3449.7,3448.3,2.89997]
[1718695406605,2.4941,3449.7,3448.2,3.33798925]
[1718695407439,2.4941,3449.7,3448.3,2.95795827]
[1718695407746,2.4941,3449.7,3448.2,0.43792925]
[1718695408735,2.4941,3449.7,3448.2,2.50192925]
[1718695408937,2.4941,3449.7,3448.3,0.76594292]
[1718695409241,2.4941,3449.7,3448.4,0.05798912]
[1718695410134,2.4941,3449.7,3448.3,0.76594292]
[1718695412451,2.4941,3449.7,3448.4,0.05798914]
[1718695413758,2.4941,3449.7,3448.3,0.76594292]
[1718695413967,2.4941,3449.7,3448.4,0.84251922]
[1718695416130,2.4941,3449.7,3448.1,2.2573]
[1718695416331,2.4941,3449.7,3448.2,0.05799268]
[1718695416541,2.4941,3449.7,3448.3,0.05799223]
[1718695418658,2.4941,3449.7,3448.4,2.89988]
[1718695418831,2.4941,3449.7,3448.5,0.85018051]
[1718695419764,2.3505,3450.6,3448.8,2.89955]
[1718695419931,2.3505,3450.6,3449.1,2.2706]
[1718695426979,2.4106,3450.5,3448.7,4.5369]
[1718695427301,3.23505,3450.5,3448.8,0.2064]
[1718695427466,0.858,3450.1,3449.1,0.858]
[1718695427666,2.4157,3450.0,3449.1,0.858]
[1718695428074,3.04307,3450.0,3449.1,0.858]
[1718695428282,3.04307,3450.0,3448.7,2.4729]
[1718695428283,0.858,3449.8,3448.7,2.4729]
[1718695428604,0.858,3449.8,3448.9,0.858]
[1718695429510,3.04307,3450.0,3448.7,2.4729]
[1718695431472,2.4157,3450.0,3448.7,2.4729]
[1718695432516,2.4157,3450.0,3448.8,0.05798667]
[1718695433385,2.4157,3450.0,3448.8,2.06]
[1718695433912,2.4157,3450.0,3448.9,2.89947]
[1718695434586,2.4157,3450.0,3449.0,2.89936]
[1718695434910,2.4157,3450.0,3449.1,0.785883]
[1718695435117,2.4157,3450.0,3449.2,2.36577744]
[1718695435277,2.4462,3450.7,3449.2,2.36577744]
[1718695437586,2.4462,3450.7,3449.2,2.3078]
[1718695443003,3.057,3450.6,3449.1,0.785883]
[1718695443202,2.2639,3450.4,3448.7,2.465]
[1718695449656,0.858,3450.1,3449.2,0.858]
[1718695450046,3.0,3450.3,3449.3,2.4314]
[1718695450222,0.858,3450.3,3449.5,0.858]
[1718695450657,3.858,3450.3,3449.5,0.858]
[1718695450836,3.0,3450.3,3449.5,0.858]
[1718695451454,3.0,3450.3,3449.3,3.2894]
[1718695451619,3.0,3450.3,3449.3,3.61834]
[1718695453037,3.0,3450.3,3449.6,0.858]
[1718695453452,2.2639,3450.4,3449.6,0.858]
[1718695453753,2.2639,3450.4,3449.8,0.858]
[1718695455061,2.3704,3451.2,3450.2,0.858]
[1718695455370,3.2284,3451.2,3450.2,1.18061]
[1718695455856,2.3704,3451.2,3450.4,0.858]
[1718695457160,0.858,3451.5,3450.5,2.3257]
[1718695457832,0.858,3451.5,3450.6,0.858]
[1718695458225,0.858,3451.5,3450.2,0.32261]
[1718695458226,0.858,3451.1,3450.2,0.32261]
[1718695458427,0.858,3450.9,3450.0,0.858]
[1718695458760,3.0,3451.1,3450.0,0.858]
[1718695458958,0.858,3451.1,3450.1,0.33485]
[1718695459163,3.858,3451.1,3450.1,0.33485]
[1718695459456,3.0,3451.1,3450.2,0.858]
[1718695459649,3.2947,3451.2,3450.4,0.858]
[1718695459850,3.0,3451.1,3450.4,0.858]
[1718695460766,3.0,3451.1,3450.2,0.858]
[1718695461326,0.858,3451.0,3449.9,2.4905]
[1718695461661,0.858,3451.0,3450.0,0.858]
[1718695462543,0.858,3451.0,3450.2,0.858]
[1718695463740,0.858,3451.0,3450.0,0.858]
[1718695463946,0.858,3450.8,3449.9,0.858]
[1718695464146,2.4271,3450.7,3449.9,0.858]
[1718695465262,2.4271,3450.7,3450.1,0.858]
[1718695465664,2.4271,3450.7,3449.6,2.2708]
[1718695465969,2.4271,3450.7,3449.8,0.858]
[1718695466160,2.4271,3450.7,3449.8,1.17088]
[1718695467080,0.858,3450.2,3449.3,0.32894]
[1718695467297,2.2627,3450.1,3449.3,0.32894]
[1718695467669,2.4974,3450.8,3449.3,0.32894]
[1718695467846,2.4974,3450.8,3450.2,0.858]
[1718695468468,3.0,3451.0,3449.8,2.2957]
[1718695468469,2.487,3451.1,3450.4,0.858]
[1718695468865,0.661212,3451.3,3450.4,0.858]
[1718695469190,1.911013,3452.9,3451.0,0.858]
[1718695469191,0.28959218,3452.2,3451.0,0.858]
[1718695469484,5.4614,3451.7,3451.0,0.858]
[1718695469688,3.0,3451.7,3451.2,0.858]
[1718695469902,0.32208999,3453.0,3451.2,0.858]
[1718695469903,2.4614,3452.0,3451.2,0.858]
[1718695470052,2.4614,3452.0,3450.6,2.89804]
[1718695470053,3.56554,3452.0,3451.0,3.1368]
[1718695470393,3.56554,3452.0,3451.0,0.858]
[1718695470602,3.56554,3452.0,3450.6,5.17683]
[1718695470603,2.70754,3452.0,3451.3,0.858]
[1718695471053,2.70754,3452.0,3450.6,2.2788]
[1718695471250,2.70754,3452.0,3450.1,2.3759]
[1718695471251,0.858,3451.5,3450.1,2.3759]
[1718695471489,2.3008,3451.4,3450.2,0.827443]
[1718695472055,3.0,3452.0,3450.3,0.05795874]
[1718695472291,2.4628,3451.9,3450.4,2.059]
[1718695472464,2.70908,3451.9,3450.5,0.64222774]
[1718695472663,3.0,3451.8,3450.6,2.3727]
[1718695472880,2.4628,3451.9,3450.7,0.05794863]
[1718695473187,5.4628,3452.2,3450.8,2.059]
[1718695473486,5.4628,3452.2,3450.6,5.27068]
[1718695473487,5.4628,3452.2,3450.7,2.059]
[1718695473797,6.49258221,3452.2,3450.8,0.50159752]
[1718695474689,2.3383,3452.0,3450.5,0.58427517]
[1718695474867,5.3383,3452.0,3450.2,0.827443]
[1718695475051,5.3383,3452.0,3450.2,3.725743]
[1718695475052,3.0,3451.9,3450.2,3.725743]
[1718695475255,2.3383,3452.0,3450.2,3.725743]
[1718695475554,2.3383,3452.0,3450.3,2.328]
[1718695475754,2.3383,3452.0,3450.5,2.059]
[1718695475953,2.3383,3452.0,3450.6,0.05795148]
[1718695476177,2.3383,3452.0,3450.5,2.059]
[1718695477562,5.3383,3452.0,3450.5,2.059]
[1718695477762,2.3383,3452.0,3450.5,2.059]
[1718695477957,2.3383,3452.0,3450.6,0.54982743]
[1718695479602,2.3383,3452.0,3450.7,0.05795185]
[1718695479796,2.3383,3452.0,3450.6,0.54982743]
[1718695480310,2.3383,3452.0,3450.7,0.05795186]
[1718695480474,2.3383,3452.0,3450.6,0.54982743]
[1718695480661,2.3383,3452.0,3450.7,0.26088274]
[1718695480861,2.3383,3452.0,3450.3,2.328]
[1718695481404,2.3357,3451.8,3450.3,2.328]
[1718695481592,4.3947,3451.8,3450.3,2.328]
[1718695481963,5.3357,3451.7,3449.8,2.453]
[1718695483197,2.3357,3451.6,3449.8,2.453]
[1718695483405,2.3357,3451.4,3449.9,0.4512]
[1718695483613,5.3357,3451.4,3449.9,0.4512]
[1718695483915,2.3397,3451.3,3449.9,0.4512]
[1718695484101,5.3397,3451.3,3449.5,2.464]
[1718695484300,2.3397,3451.2,3449.5,2.464]
[1718695484623,2.2672,3451.1,3449.5,2.464]
[1718695484812,3.0,3451.0,3448.8,2.3368]
[1718695485110,2.2672,3450.8,3448.8,7.29533]
[1718695485303,1.03262,3450.7,3448.9,3.91895]
[1718695485617,4.03262,3450.7,3448.9,3.91895]
[1718695485797,4.03262,3450.7,3448.9,1.01949]
[1718695486715,2.2985,3450.6,3448.9,1.01949]
[1718695486912,5.2985,3450.6,3448.8,2.3368]
[1718695487085,5.2985,3450.6,3448.8,5.3368]
[1718695487617,2.2985,3450.5,3448.8,5.3368]
[1718695487917,5.2985,3450.5,3448.8,5.3368]
[1718695489832,5.2985,3450.5,3448.8,8.23634]
[1718695490028,5.2985,3450.5,3448.9,1.319505]
[1718695490228,5.2985,3450.5,3449.1,2.059]
[1718695491435,5.2985,3450.5,3448.9,1.319505]
[1718695491823,5.2985,3450.5,3448.8,2.3368]
[1718695493531,2.3441,3450.4,3448.8,2.3368]
[1718695493700,5.3441,3450.4,3448.8,2.3368]
[1718695494235,3.0,3450.3,3448.8,2.3368]
[1718695494611,2.3441,3450.4,3448.8,2.3368]
[1718695494822,0.83441,3450.3,3448.9,0.43958]
[1718695495022,3.83441,3450.3,3448.9,0.43958]
[1718695500429,3.0,3450.3,3448.9,0.43958]
[1718695500625,2.3441,3450.4,3448.9,0.43958]
[1718695505056,2.3441,3450.4,3447.8,2.90033]
[1718695505057,2.4536,3449.8,3448.1,2.4443]
[1718695505417,2.4536,3449.7,3448.1,2.4443]
[1718695505640,7.5126,3449.7,3448.1,2.4443]
[1718695505919,2.4536,3449.6,3448.1,2.4443]
[1718695506120,0.75126,3449.5,3448.2,0.24443]
[1718695506364,3.75126,3449.5,3448.2,0.24443]
[1718695507919,3.75126,3449.5,3448.1,1.98873]
[1718695509959,3.0,3449.5,3448.1,1.98873]
[1718695510159,2.4536,3449.6,3448.2,2.90003]
[1718695510659,2.4536,3449.6,3448.1,4.88887]
[1718695511764,2.4536,3449.6,3448.1,1.98873]
[1718695513344,2.3945,3449.6,3448.1,1.98873]
[1718695513542,2.3945,3449.6,3448.2,0.694795]
[1718695515008,2.3945,3449.6,3448.1,1.98873]
[1718695517872,2.3945,3449.6,3447.7,2.3891]
[1718695519456,2.3945,3449.6,3447.8,2.90039]
[1718695519663,2.3945,3449.6,3448.1,2.3273]
[1718695520045,2.3945,3449.6,3448.1,5.22741]
[1718695520377,2.3945,3449.6,3448.2,1.018665]
[1718695520576,2.3945,3449.6,3448.5,2.8998]
[1718695520885,2.332,3450.5,3448.8,5.16304]
[1718695521086,2.332,3450.5,3449.2,2.8992]
[1718695521285,1.74758716,3452.2,3448.9,3.0]
[1718695521286,2.332,3450.9,3449.3,0.05796801]
[1718695521583,0.2332,3450.8,3449.1,4.95829]
[1718695521880,0.2332,3450.8,3449.1,2.059]
[1718695522672,3.2332,3450.8,3449.1,2.059]
[1718695523997,3.2332,3450.8,3449.0,3.0]
[1718695524283,3.2332,3450.8,3449.1,0.05797964]
[1718695524583,2.2701,3450.5,3448.3,5.21851]
[1718695524945,2.2701,3450.2,3448.2,3.077665]
[1718695525182,5.2701,3450.1,3448.0,2.90021]
[1718695525679,3.0,3450.0,3448.1,2.90013]
[1718695526046,3.0,3450.0,3447.9,2.9003]
[1718695526272,3.0,3450.0,3448.0,2.90022]
[1718695526445,2.88601,3449.9,3448.1,0.727782]
[1718695526648,2.3193,3449.7,3448.1,0.727782]
[1718695527251,2.3193,3449.7,3448.1,3.727782]
[1718695527984,2.3193,3449.7,3448.4,2.89987]
[1718695528150,2.3193,3449.7,3448.5,0.5596737]
[1718695528745,2.3193,3449.7,3448.7,2.89963]
[1718695528950,2.3569,3450.7,3448.9,2.89946]
[1718695529191,2.3569,3450.7,3449.0,0.0579787]
[1718695529349,0.74159,3450.6,3449.0,0.35373157]
[1718695530192,0.74159,3450.6,3449.1,0.05797867]
[1718695530496,0.74159,3450.6,3449.1,2.95726867]
[1718695530700,3.0,3450.6,3449.0,2.35475287]
[1718695530902,2.3569,3450.7,3449.0,5.25413287]
[1718695532099,2.3569,3450.7,3449.0,0.29575287]
[1718695532797,2.3569,3450.7,3449.1,0.05797872]
[1718695533098,0.74159,3450.6,3449.1,0.05797872]
[1718695533298,3.0,3450.6,3449.1,0.05797872]
[1718695533517,3.0,3450.6,3449.0,2.35475287]
[1718695533701,5.3569,3450.7,3449.0,2.35475287]
[1718695533900,2.3569,3450.7,3449.0,2.35475287]
[1718695534200,3.09849,3450.7,3449.1,1.11536329]
[1718695534383,3.0,3450.6,3449.1,1.11536329]
[1718695534568,3.0,3450.6,3449.0,2.35475287]
[1718695535499,3.0,3450.6,3449.0,0.29575287]
[1718695536068,2.3521,3450.5,3448.7,5.059]
[1718695539605,4.4111,3450.5,3448.7,3.0]
[1718695539811,3.0,3450.4,3448.6,5.4328]
[1718695540010,6.0,3450.4,3448.6,2.4328]
[1718695540313,1.04111,3450.3,3448.7,0.29344861]
[1718695540507,1.04111,3450.3,3448.5,0.50168615]
[1718695540508,2.3413,3450.2,3448.5,0.50168615]
[1718695540811,2.3413,3449.9,3448.3,3.0]
[1718695541115,5.3413,3449.9,3448.3,3.0]
[1718695541411,5.3413,3449.9,3448.1,2.483]
[1718695541588,0.6104476,3449.8,3448.2,1.044222]
[1718695541788,3.6104476,3449.8,3448.2,4.044222]
[1718695544006,3.6104476,3449.8,3448.3,0.05798981]
[1718695544207,3.0,3449.8,3448.5,2.89981]
[1718695544412,2.3413,3449.9,3448.3,2.059]
[1718695544589,2.3413,3449.9,3448.3,7.95897]
[1718695545725,2.3413,3449.9,3448.5,2.89979]
[1718695546029,2.3413,3449.9,3448.7,2.4711]
[1718695546630,2.4628,3450.4,3448.8,0.057978]
[1718695546807,2.4628,3450.4,3448.8,5.89955]
[1718695549628,2.4628,3450.4,3448.9,0.05797566]
[1718695549816,2.4628,3450.4,3449.1,2.059]
[1718695550020,2.4628,3450.4,3449.2,0.05797397]
[1718695550228,2.4628,3450.4,3449.3,0.05797397]
[1718695550421,2.4628,3450.4,3449.1,2.059]
[1718695550731,2.4628,3450.4,3449.2,0.05797418]
[1718695551036,2.4628,3450.4,3449.3,0.37454785]
[1718695551733,2.3519,3450.8,3449.4,2.4661]
[1718695552915,2.3519,3450.8,3449.5,0.05797017]
[1718695553526,3.0,3451.2,3449.5,2.11697017]
[1718695553914,2.2814,3451.3,3449.5,5.01593017]
[1718695554118,2.2814,3451.3,3449.6,4.06977238]
[1718695554438,2.2814,3451.3,3449.7,0.05796248]
[1718695554739,2.2814,3451.3,3449.8,0.05796247]
[1718695556046,2.2814,3451.3,3449.9,2.2775]
[1718695557147,3.0,3451.5,3449.9,2.2775]
[1718695557350,5.40797137,3451.6,3450.0,0.517615]
[1718695557641,3.0,3451.5,3450.0,6.416095]
[1718695557840,2.40797137,3451.6,3450.0,6.416095]
[1718695559036,2.40797137,3451.6,3450.0,3.517615]
[1718695559225,2.40797137,3451.6,3450.1,1.3651395]
[1718695559429,2.40797137,3451.6,3450.2,2.3901]
[1718695559735,2.40797137,3451.6,3450.3,0.05795366]
[1718695559940,2.40797137,3451.6,3450.3,2.11695366]
[1718695560109,2.40797137,3451.6,3450.3,5.11695366]
[1718695560311,2.40797137,3451.6,3450.4,1.17705632]
[1718695560530,2.40797137,3451.6,3450.5,0.05795092]
[1718695560741,2.40797137,3451.6,3450.6,2.3716]
[1718695561624,3.0,3452.0,3450.6,2.3716]
[1718695561806,2.37,3452.1,3450.6,2.3716]
[1718695562007,2.37,3452.1,3450.7,0.94467263]
[1718695563140,3.0,3452.2,3450.7,0.94467263]
[1718695563531,3.0,3452.2,3450.6,2.3716]
[1718695565624,3.0,3452.2,3450.8,2.4104]
[1718695565829,3.0,3452.2,3450.9,0.05794508]
[1718695568359,5.3259,3452.3,3450.9,0.05794508]
[1718695568651,3.0,3452.2,3451.0,2.396]
[1718695568851,3.0,3452.2,3451.1,0.30333736]
[1718695571020,2.25868128,3452.6,3451.3,2.3374]
[1718695571233,2.3426,3453.4,3451.3,2.3374]
[1718695571234,4.39083797,3453.4,3451.3,2.3374]
[1718695571430,4.39083797,3453.4,3451.4,2.3374]
[1718695571621,0.9449838,3453.3,3451.7,2.2503]
[1718695571824,0.9449838,3453.3,3451.8,0.05792979]
[1718695572021,4.39083797,3453.4,3451.8,0.05792979]
[1718695572458,4.39083797,3453.4,3451.9,2.2503]
[1718695572660,2.04823797,3453.4,3452.0,2.11692622]
[1718695572836,2.04823797,3453.4,3452.1,2.30821937]
[1718695573159,2.04823797,3453.4,3452.2,0.72641394]
[1718695573462,2.04823797,3453.4,3451.7,3.0]
[1718695573637,2.04823797,3453.4,3451.6,5.4405]
[1718695574956,2.04823797,3453.4,3451.8,2.059]
[1718695575263,2.04823797,3453.4,3451.9,2.44]
[1718695575767,2.04823797,3453.4,3451.9,5.44]
[1718695575965,2.04823797,3453.4,3452.0,0.7499]
[1718695576264,2.04823797,3453.4,3452.0,3.7499]
[1718695579164,3.0,3453.9,3452.0,3.7499]
[1718695581774,3.0,3453.9,3452.1,2.3025]
[1718695582260,3.0,3453.9,3452.2,2.11691595]
[1718695582464,5.059,3454.4,3452.4,2.3025]
[1718695582642,5.059,3454.4,3452.4,5.3025]
[1718695583579,5.059,3454.4,3452.5,2.3025]
[1718695583777,1.72617571,3454.5,3453.1,2.3025]
[1718695583957,1.72617571,3454.5,3453.2,0.43615]
[1718695584162,1.72617571,3454.5,3453.3,0.05790919]
[1718695584763,1.72617571,3454.5,3453.3,0.05790918]
[1718695585849,1.72617571,3454.5,3453.4,0.05790377]
[1718695586650,1.72617571,3454.5,3453.5,2.2671]
[1718695586848,2.3859,3456.1,3453.9,2.059]
[1718695587173,2.3859,3456.1,3453.6,2.66990038]
[1718695587174,2.3859,3455.7,3453.7,3.0]
[1718695587871,5.4409,3455.7,3453.7,3.0]
[1718695588062,5.059,3455.4,3453.6,2.66990038]
[1718695588240,3.055,3455.3,3453.6,2.66990038]
[1718695588437,2.3339,3455.1,3453.6,2.66990038]
[1718695588869,2.059,3455.0,3453.6,0.23250038]
[1718695589052,5.059,3455.0,3453.2,0.43615]
[1718695589542,5.059,3455.0,3453.3,0.05790554]
[1718695590474,3.0,3455.0,3453.3,0.05790554]
[1718695590656,5.3339,3455.1,3453.2,0.43615]
[1718695590977,5.3339,3455.1,3453.4,0.05790179]
[1718695591284,0.61453,3455.0,3453.4,0.54663697]
[1718695591579,3.61453,3455.0,3453.4,0.54663697]
[1718695592045,3.61453,3455.0,3453.4,0.48873518]
[1718695593563,5.67353,3455.0,3453.4,0.48873518]
[1718695593769,5.67353,3455.0,3453.1,4.3933]
[1718695593955,5.67353,3455.0,3453.2,0.0579059]
[1718695594361,5.67353,3455.0,3453.1,4.3933]
[1718695594558,3.0,3454.9,3453.1,2.3343]
[1718695595039,3.0,3454.8,3453.1,2.3343]
[1718695595242,0.867353,3454.7,3453.2,0.23343]
[1718695598884,2.4821,3454.6,3453.2,0.23343]
[1718695599071,5.4821,3454.6,3453.2,0.23343]
[1718695599785,5.4821,3454.6,3453.3,0.05790843]
[1718695600146,2.4821,3454.6,3453.3,0.05790843]
[1718695600348,2.2701,3455.2,3453.4,0.46846384]
[1718695600550,2.2701,3455.2,3453.5,0.05790265]
[1718695600982,2.2701,3455.2,3453.4,0.46846384]
[1718695601656,5.2701,3455.2,3453.4,0.46846384]
[1718695602787,5.2701,3455.2,3453.6,2.3293]
[1718695602983,5.2701,3455.2,3453.7,0.28556623]
[1718695603289,2.2701,3455.2,3453.8,0.05789543]
[1718695603972,2.2701,3455.2,3453.7,0.28556623]
[1718695604570,5.2701,3455.2,3453.7,0.28556623]
[1718695604778,5.2701,3455.2,3453.6,2.3293]
[1718695604987,2.059,3454.9,3453.2,2.3684]
[1718695605303,5.059,3454.9,3453.2,2.3684]
[1718695605673,3.0,3454.8,3453.2,2.3684]
[1718695606391,2.4545,3454.7,3452.3,2.4506]
[1718695606583,3.2604,3454.7,3452.4,0.71926]
[1718695606783,3.0,3454.6,3452.4,3.71926]
[1718695607302,6.055,3454.6,3452.5,0.05791415]
[1718695607608,6.055,3454.6,3452.4,0.71926]
[1718695607609,2.059,3454.5,3452.4,0.71926]
[1718695607807,2.059,3454.1,3452.5,0.522886]
[1718695608018,5.059,3454.1,3452.3,2.4506]
[1718695608380,3.0,3454.0,3452.3,2.4506]
[1718695608797,3.0,3454.0,3451.7,2.3764]
[1718695609707,3.0,3454.0,3451.7,5.3764]
[1718695611603,3.0,3454.0,3451.7,4.4354]
[1718695611801,0.4498076,3453.9,3451.8,0.44354]
[1718695613416,2.4827,3453.8,3451.8,0.44354]
[1718695613590,5.4827,3453.8,3451.8,0.44354]
[1718695614275,5.4827,3453.8,3452.1,2.059]
[1718695614477,5.4827,3453.8,3452.2,0.05792374]
[1718695614700,0.59325076,3453.7,3452.3,0.26961609]
[1718695614997,3.59325076,3453.7,3452.3,0.26961609]
[1718695615675,3.59325076,3453.7,3452.3,0.21169237]
[1718695616205,3.59325076,3453.7,3452.4,0.05792166]
[1718695617205,2.4827,3453.8,3452.4,0.05792166]
[1718695617788,3.0,3454.5,3452.3,0.21169237]
[1718695617988,2.4506,3454.4,3452.5,2.4213]
[1718695618703,2.4506,3454.4,3452.9,2.059]
[1718695618906,2.4506,3454.4,3453.0,0.0579092]
[1718695619107,2.4506,3454.4,3453.1,0.21169092]
[1718695619489,2.4506,3454.4,3453.2,0.05790922]
[1718695619688,2.4506,3454.4,3453.1,0.21169092]
[1718695620309,2.4506,3454.4,3452.6,3.0]
[1718695620481,2.4506,3454.4,3452.7,0.05791194]
[1718695620678,2.4506,3454.4,3452.8,0.05791194]
[1718695621715,2.4506,3454.4,3452.5,2.4213]
[1718695622373,2.4506,3454.4,3452.6,0.05791168]
[1718695622581,2.4506,3454.4,3452.7,0.75382117]
[1718695622798,2.4506,3454.4,3452.8,0.05791167]
[1718695624602,2.4506,3454.4,3452.9,0.05791166]
[1718695626314,2.4506,3454.4,3452.8,2.059]
[1718695629905,2.4506,3454.4,3452.9,0.05790814]
[1718695630105,2.4506,3454.4,3453.0,0.28707293]
[1718695630307,2.4506,3454.4,3453.1,0.05790658]
[1718695631426,2.2916,3454.9,3453.2,4.5142]
[1718695631624,2.2916,3454.9,3453.3,0.05790006]
[1718695631799,2.2916,3454.9,3453.3,3.0]
[1718695631990,2.2916,3454.9,3453.4,2.60452]
[1718695632386,4.3506,3455.7,3453.5,2.4552]
[1718695632592,2.2916,3455.7,3454.7,2.059]
[1718695632791,2.2916,3455.7,3454.3,2.059]
[1718695633500,2.2916,3455.7,3454.4,0.0578843]
[1718695633801,2.2916,3455.7,3454.5,0.21168843]
[1718695635624,2.2916,3455.7,3454.1,2.059]
[1718695636626,2.2916,3455.7,3453.9,2.059]
[1718695640324,2.2916,3455.7,3453.7,2.059]
[1718695641796,2.2916,3455.7,3453.4,0.54552]
[1718695641797,2.3692,3455.5,3453.4,0.54552]
[1718695641996,2.3692,3455.4,3453.2,5.059]
[1718695642438,2.3692,3455.2,3453.2,2.059]
[1718695642608,2.3692,3455.1,3452.6,2.27]
[1718695642939,2.059,3454.8,3452.7,2.059]
[1718695643139,2.3692,3454.7,3452.7,2.059]
[1718695643328,2.3692,3454.6,3452.7,2.059]
[1718695643524,2.3692,3454.6,3452.6,2.27]
[1718695643744,2.3692,3454.6,3452.6,2.059]
[1718695643912,2.3692,3454.5,3452.6,2.059]
[1718695644111,0.83692,3454.4,3452.7,0.2059]
[1718695644708,2.3692,3454.5,3453.0,2.059]
[1718695644913,2.3692,3454.5,3453.1,0.0579034]
[1718695646229,2.3692,3454.5,3453.0,2.059]
[1718695647526,2.3692,3454.5,3453.0,1.979]
[1718695647723,2.3692,3454.5,3453.1,0.05790348]
[1718695647937,2.3692,3454.5,3453.2,0.20369035]
[1718695648139,2.3692,3454.5,3453.3,0.05790195]
[1718695650466,2.3692,3454.5,3453.2,0.20369035]
[1718695650651,2.3692,3454.5,3452.7,2.059]
[1718695653163,2.3692,3454.5,3453.2,2.059]
[1718695653365,2.3692,3454.5,3453.3,0.26380639]
[1718695654062,2.3692,3454.5,3453.3,0.2059]
[1718695654762,2.3692,3454.5,3453.4,0.05790239]
[1718695654973,2.3692,3454.5,3453.6,2.059]
[1718695655180,2.3692,3454.5,3453.7,0.0578958]
[1718695655334,2.3692,3454.5,3454.0,2.059]
[1718695655658,2.2893,3455.9,3454.1,0.0578932]
[1718695657036,2.2893,3455.9,3454.4,2.059]
[1718695657370,2.2893,3455.9,3454.5,0.05788256]
[1718695657582,2.2507,3456.7,3455.2,2.059]
[1718695657798,2.2507,3456.7,3455.3,0.2059]
[1718695658704,1.44597444,3456.8,3455.3,0.2059]
[1718695658705,1.28787113,3456.8,3455.6,2.059]
[1718695658988,2.2622,3457.2,3455.7,0.0578593]
[1718695659192,2.2622,3457.2,3455.9,2.31]
[1718695659348,2.2622,3457.2,3456.0,2.29578593]
[1718695659553,2.2622,3457.2,3456.0,0.23678593]
[1718695659791,2.2622,3457.2,3455.7,2.059]
[1718695660087,2.2622,3457.2,3455.3,0.2059]
[1718695660574,2.2622,3457.2,3455.1,2.059]
[1718695662164,2.2622,3457.2,3455.2,0.05786449]
[1718695662364,2.2622,3457.2,3455.3,0.0578645]
[1718695662966,2.2622,3457.2,3455.1,2.059]
[1718695663387,2.2622,3457.2,3455.2,1.742]
[1718695663562,2.2622,3457.2,3455.5,2.059]
[1718695664868,2.2622,3457.2,3455.6,0.05786252]
[1718695665086,2.2622,3457.2,3455.9,2.059]
[1718695665409,2.2622,3457.2,3456.0,0.057858]
[1718695668193,2.3281,3458.2,3456.3,2.059]
[1718695668415,2.3281,3458.2,3456.8,2.059]
[1718695668766,2.3281,3458.2,3456.9,0.0578398]
[1718695669274,2.3281,3458.2,3457.0,0.05783981]
[1718695669486,2.3281,3458.2,3457.2,2.059]
[1718695669699,2.3281,3458.2,3457.3,0.2059]
[1718695670706,2.3281,3458.2,3457.4,0.05783716]
[1718695671001,2.3281,3458.2,3457.3,0.2059]